[Event "*** SCC Grand Prix: Titled Tuesday Blitz"]
[Site "Chess.com"]
[Date "2020.07.21"]
[Round "5"]
[White "QueenOfTactics90"]
[Black "dodorox"]
[Result "0-1"]
[WhiteElo "1990"]
[BlackElo "2143"]
[TimeControl "180+1"]
[EndTime "10:55:56 PDT"]
[Termination "dodorox won by resignation"]

1. e4 {[%clk 0:03:00.9]} 1... e6 {[%clk 0:02:59.7]} 2. Qe2 {[%clk 0:03:00.2]}
2... c6 {[%clk 0:02:59.1]} 3. g3 {[%clk 0:02:55.8]} 3... d5 {[%clk 0:02:58.7]}
4. e5 {[%clk 0:02:56.4]} 4... Bc5 {[%clk 0:02:50.6]} 5. Nf3 {[%clk 0:02:54.8]}
5... Ne7 {[%clk 0:02:48.6]} 6. Bg2 {[%clk 0:02:43.4]} 6... Bb6 {[%clk
0:02:47.2]} 7. O-O {[%clk 0:02:42.6]} 7... O-O {[%clk 0:02:46.4]} 8. d3 {[%clk
0:02:38.8]} 8... c5 {[%clk 0:02:46.3]} 9. h4 {[%clk 0:02:37.1]} 9... Nbc6 {[%clk
0:02:45.9]} 10. c3 {[%clk 0:02:36.1]} 10... Bc7 {[%clk 0:02:37.8]} 11. Bf4
{[%clk 0:02:34.7]} 11... Ng6 {[%clk 0:02:34.4]} 12. Bg5 {[%clk 0:02:24.7]} 12...
f6 {[%clk 0:02:16]} 13. exf6 {[%clk 0:02:24.2]} 13... gxf6 {[%clk 0:02:13.7]}
14. Bh6 {[%clk 0:02:24.3]} 14... Re8 {[%clk 0:02:09.3]} 15. h5 {[%clk
0:02:23.8]} 15... Nge7 {[%clk 0:01:35.5]} 16. Nh4 {[%clk 0:01:46.5]} 16... Kh8
{[%clk 0:01:35.6]} 17. Nd2 {[%clk 0:01:39.7]} 17... Rg8 {[%clk 0:01:15.7]} 18.
Rae1 {[%clk 0:01:27]} 18... e5 {[%clk 0:01:12]} 19. f4 {[%clk 0:01:11.6]} 19...
Rxg3 {[%clk 0:00:55.7]} 20. fxe5 {[%clk 0:01:03.9]} 20... Nxe5 {[%clk
0:00:25.4]} 21. Rxf6 {[%clk 0:01:03.4]} 21... Ng8 {[%clk 0:00:19.2]} 22. Rf8
{[%clk 0:01:00.5]} 22... Qxh4 {[%clk 0:00:13.5]} 23. Qf2 {[%clk 0:00:43.5]}
23... Bh3 {[%clk 0:00:10.5]} 24. Nf3 {[%clk 0:00:06.7]} 24... Rxg2+ {[%clk
0:00:09.3]} 25. Qxg2 {[%clk 0:00:05.1]} 25... Bxg2 {[%clk 0:00:09.7]} 26. Nxh4
{[%clk 0:00:04.5]} 26... Rxf8 {[%clk 0:00:08.3]} 27. Bxf8 {[%clk 0:00:04.2]}
27... Bh3 {[%clk 0:00:07.4]} 28. Re2 {[%clk 0:00:02.5]} 28... Bg4 {[%clk
0:00:06.3]} 29. Rg2 {[%clk 0:00:02.1]} 29... Nh6 {[%clk 0:00:05.2]} 30. Bxh6
{[%clk 0:00:01.2]} 30... Kg8 {[%clk 0:00:03.9]} 31. Bf4 {[%clk 0:00:01.8]} 31...
Kf7 {[%clk 0:00:03.6]} 32. Bxe5 {[%clk 0:00:02.7]} 32... Bxe5 {[%clk 0:00:03.1]}
33. d4 {[%clk 0:00:03.6]} 33... Bh3 {[%clk 0:00:01.4]} 34. dxe5 {[%clk
0:00:04.5]} 34... Bxg2 {[%clk 0:00:01.1]} 35. Kxg2 {[%clk 0:00:04.5]} 35... Ke6
{[%clk 0:00:02]} 36. Kf2 {[%clk 0:00:05.4]} 36... Kxe5 {[%clk 0:00:02.5]} 37.
Ke3 {[%clk 0:00:06.3]} 37... d4+ {[%clk 0:00:02.5]} 38. Kd3 {[%clk 0:00:07.2]}
38... dxc3 {[%clk 0:00:02.2]} 39. Ke3 {[%clk 0:00:08.1]} 39... cxb2 {[%clk
0:00:01.8]} 40. Kf3 {[%clk 0:00:09]} 40... b1=Q {[%clk 0:00:02.7]} 41. Ke3
{[%clk 0:00:09.9]} 41... Qxa2 {[%clk 0:00:03.5]} 42. Kf3 {[%clk 0:00:09.5]}
42... Qa3+ {[%clk 0:00:04.4]} 43. Kg4 {[%clk 0:00:10]} 43... Qa4+ {[%clk
0:00:05.3]} 44. Kg5 {[%clk 0:00:10.9]} 44... Qa5 {[%clk 0:00:06.2]} 45. Kh6
{[%clk 0:00:11.8]} 45... Qb6+ {[%clk 0:00:07.1]} 46. Kxh7 {[%clk 0:00:12.7]}
46... Qc7+ {[%clk 0:00:07.5]} 47. Kh6 {[%clk 0:00:13.6]} 47... c4 {[%clk
0:00:07.8]} 48. Ng6+ {[%clk 0:00:14.5]} 48... Ke4 {[%clk 0:00:07.4]} 0-1

[Event "*** SCC Grand Prix: Titled Tuesday Blitz"]
[Site "Chess.com"]
[Date "2020.07.21"]
[Round "5"]
[White "EvgenyT"]
[Black "zaur-mammadov"]
[Result "1-0"]
[WhiteElo "2914"]
[BlackElo "2659"]
[TimeControl "180+1"]
[EndTime "10:55:57 PDT"]
[Termination "EvgenyT won by resignation"]

1. Nf3 {[%clk 0:03:00.9]} 1... d5 {[%clk 0:02:59.3]} 2. g3 {[%clk 0:02:58.3]}
2... Nf6 {[%clk 0:02:59.5]} 3. Bg2 {[%clk 0:02:58.3]} 3... g6 {[%clk 0:02:57.4]}
4. O-O {[%clk 0:02:57.5]} 4... Bg7 {[%clk 0:02:54.7]} 5. c4 {[%clk 0:02:57]}
5... c6 {[%clk 0:02:53.9]} 6. b3 {[%clk 0:02:53.5]} 6... Ne4 {[%clk 0:02:50.4]}
7. d4 {[%clk 0:02:53.2]} 7... O-O {[%clk 0:02:49.4]} 8. Bb2 {[%clk 0:02:50.6]}
8... a5 {[%clk 0:02:49.2]} 9. Nc3 {[%clk 0:02:49.7]} 9... Nxc3 {[%clk
0:02:46.2]} 10. Bxc3 {[%clk 0:02:49.5]} 10... a4 {[%clk 0:02:44.7]} 11. e3
{[%clk 0:02:45.5]} 11... axb3 {[%clk 0:02:37.2]} 12. axb3 {[%clk 0:02:45.1]}
12... Rxa1 {[%clk 0:02:37.6]} 13. Qxa1 {[%clk 0:02:45]} 13... Na6 {[%clk
0:02:31.5]} 14. Rc1 {[%clk 0:02:42.6]} 14... Qb6 {[%clk 0:02:22.7]} 15. Ba5
{[%clk 0:02:20.9]} 15... Qa7 {[%clk 0:02:00.9]} 16. Bb4 {[%clk 0:01:52.8]} 16...
Re8 {[%clk 0:01:45.6]} 17. cxd5 {[%clk 0:01:52.1]} 17... Qb6 {[%clk 0:01:31.8]}
18. Ba5 {[%clk 0:01:44.3]} 18... Qxb3 {[%clk 0:01:28.1]} 19. Nd2 {[%clk
0:01:27.5]} 19... Qd3 {[%clk 0:01:17.5]} 20. dxc6 {[%clk 0:01:21.7]} 20... bxc6
{[%clk 0:01:15.6]} 21. Bxc6 {[%clk 0:01:21.3]} 21... Rf8 {[%clk 0:01:09.4]} 22.
Be4 {[%clk 0:01:18.1]} 22... Qb5 {[%clk 0:01:02.1]} 23. Rb1 {[%clk 0:01:06.7]}
23... Qh5 {[%clk 0:00:59.8]} 24. Qa4 {[%clk 0:01:04.6]} 24... Bf5 {[%clk
0:00:51.7]} 25. Bxf5 {[%clk 0:00:53.3]} 25... Qxf5 {[%clk 0:00:50]} 26. Qb5
{[%clk 0:00:53.2]} 26... Qxb5 {[%clk 0:00:25.3]} 27. Rxb5 {[%clk 0:00:52.7]}
27... Rb8 {[%clk 0:00:25.9]} 28. Rxb8+ {[%clk 0:00:41.9]} 28... Nxb8 {[%clk
0:00:26.8]} 29. Kg2 {[%clk 0:00:41.8]} 29... e6 {[%clk 0:00:23.9]} 30. Kf3
{[%clk 0:00:40.4]} 30... Nc6 {[%clk 0:00:24.2]} 31. Bc3 {[%clk 0:00:39.9]} 31...
f5 {[%clk 0:00:20.4]} 32. Ke2 {[%clk 0:00:39.1]} 32... Kf7 {[%clk 0:00:20.7]}
33. Kd3 {[%clk 0:00:39]} 33... g5 {[%clk 0:00:21]} 34. f3 {[%clk 0:00:38.7]}
34... g4 {[%clk 0:00:20.9]} 35. fxg4 {[%clk 0:00:36.7]} 35... fxg4 {[%clk
0:00:21.8]} 36. e4 {[%clk 0:00:36.4]} 36... h5 {[%clk 0:00:22.1]} 37. d5 {[%clk
0:00:33.1]} 37... exd5 {[%clk 0:00:21.1]} 38. exd5 {[%clk 0:00:30.1]} 38... Ne7
{[%clk 0:00:17.5]} 39. Bxg7 {[%clk 0:00:28.5]} 39... Kxg7 {[%clk 0:00:18.4]} 40.
Ke4 {[%clk 0:00:28.3]} 40... Kf6 {[%clk 0:00:17.1]} 41. Nc4 {[%clk 0:00:24.1]}
41... Ng6 {[%clk 0:00:14.3]} 42. Kd4 {[%clk 0:00:19.9]} 42... h4 {[%clk
0:00:14.2]} 43. Ke4 {[%clk 0:00:19.7]} 43... hxg3 {[%clk 0:00:13]} 44. hxg3
{[%clk 0:00:19.8]} 44... Ne7 {[%clk 0:00:12.3]} 45. Ne3 {[%clk 0:00:18.5]} 45...
Kg5 {[%clk 0:00:09.2]} 46. d6 {[%clk 0:00:17.7]} 46... Ng8 {[%clk 0:00:08.3]}
47. Ke5 {[%clk 0:00:16.7]} 47... Nf6 {[%clk 0:00:08.1]} 48. Ke6 {[%clk
0:00:16.7]} 48... Kg6 {[%clk 0:00:07.9]} 49. d7 {[%clk 0:00:15.5]} 49... Nxd7
{[%clk 0:00:07.7]} 50. Kxd7 {[%clk 0:00:15.7]} 50... Kf6 {[%clk 0:00:08.6]} 51.
Kd6 {[%clk 0:00:15.8]} 51... Kg5 {[%clk 0:00:08.2]} 52. Ke5 {[%clk 0:00:15.8]}
1-0

[Event "*** SCC Grand Prix: Titled Tuesday Blitz"]
[Site "Chess.com"]
[Date "2020.07.21"]
[Round "5"]
[White "Ausbildung"]
[Black "Vladislav_Chizhikov"]
[Result "1-0"]
[WhiteElo "2254"]
[BlackElo "2445"]
[TimeControl "180+1"]
[EndTime "10:55:58 PDT"]
[Termination "Ausbildung won on time"]

1. e4 {[%clk 0:02:43.5]} 1... e6 {[%clk 0:02:59.3]} 2. d4 {[%clk 0:02:41.4]}
2... d5 {[%clk 0:02:59.4]} 3. Bd3 {[%clk 0:02:41.9]} 3... dxe4 {[%clk
0:02:59.1]} 4. Bxe4 {[%clk 0:02:42]} 4... Nf6 {[%clk 0:02:59.7]} 5. Bf3 {[%clk
0:02:42.1]} 5... c5 {[%clk 0:03:00.2]} 6. Ne2 {[%clk 0:02:42.6]} 6... Nc6 {[%clk
0:02:59.7]} 7. Be3 {[%clk 0:02:42.8]} 7... Qb6 {[%clk 0:02:59.1]} 8. b3 {[%clk
0:02:37.8]} 8... Bd7 {[%clk 0:02:56.2]} 9. O-O {[%clk 0:02:35.1]} 9... Rc8
{[%clk 0:02:50.5]} 10. Na3 {[%clk 0:02:33.2]} 10... cxd4 {[%clk 0:02:48.7]} 11.
Nc4 {[%clk 0:02:32.2]} 11... Qa6 {[%clk 0:02:37.8]} 12. Nxd4 {[%clk 0:02:31.2]}
12... Nxd4 {[%clk 0:02:30.1]} 13. Bxd4 {[%clk 0:02:28.7]} 13... Bb5 {[%clk
0:02:26.6]} 14. Be2 {[%clk 0:02:09.1]} 14... Be7 {[%clk 0:02:12.3]} 15. Bxf6
{[%clk 0:02:07.5]} 15... gxf6 {[%clk 0:02:11.6]} 16. a4 {[%clk 0:02:05.2]} 16...
Bxc4 {[%clk 0:01:59.9]} 17. Bxc4 {[%clk 0:02:04.2]} 17... Qd6 {[%clk 0:01:55.8]}
18. Qh5 {[%clk 0:02:02.6]} 18... a6 {[%clk 0:00:52.2]} 19. Rad1 {[%clk
0:02:00.8]} 19... Qe5 {[%clk 0:00:44]} 20. Qf3 {[%clk 0:01:46.6]} 20... Qc7
{[%clk 0:00:26.3]} 21. Rfe1 {[%clk 0:01:36.9]} 21... O-O {[%clk 0:00:25.1]} 22.
Qh5 {[%clk 0:01:18.1]} 22... Kh8 {[%clk 0:00:20.3]} 23. Rd3 {[%clk 0:01:16.3]}
23... Qc5 {[%clk 0:00:15.8]} 24. Qf3 {[%clk 0:01:04]} 24... Rc7 {[%clk
0:00:15.4]} 25. Qe4 {[%clk 0:01:01.9]} 25... b5 {[%clk 0:00:14.5]} 26. Rh3
{[%clk 0:01:00.9]} 26... f5 {[%clk 0:00:14.8]} 27. Qf3 {[%clk 0:00:53.3]} 27...
bxc4 {[%clk 0:00:14.3]} 28. Qh5 {[%clk 0:00:52.4]} 28... Bh4 {[%clk 0:00:07.6]}
29. Rxh4 {[%clk 0:00:49.6]} 29... f6 {[%clk 0:00:08.1]} 30. Qh6 {[%clk
0:00:48.4]} 30... Rg8 {[%clk 0:00:07.4]} 31. Rxc4 {[%clk 0:00:47.7]} 31... Qe7
{[%clk 0:00:06.6]} 32. Rxc7 {[%clk 0:00:46.6]} 32... Qxc7 {[%clk 0:00:07.5]} 33.
Qxf6+ {[%clk 0:00:46.7]} 33... Qg7 {[%clk 0:00:07.4]} 34. Qxg7+ {[%clk
0:00:45.7]} 34... Kxg7 {[%clk 0:00:08.3]} 35. Rxe6 {[%clk 0:00:45.7]} 35... Rd8
{[%clk 0:00:08.8]} 36. g3 {[%clk 0:00:43.8]} 36... Rd2 {[%clk 0:00:09.3]} 37.
Rc6 {[%clk 0:00:43.8]} 37... a5 {[%clk 0:00:09.1]} 38. Rc5 {[%clk 0:00:42.9]}
38... Kf6 {[%clk 0:00:08.9]} 39. Rxa5 {[%clk 0:00:42.9]} 39... Rxc2 {[%clk
0:00:09.3]} 40. Rb5 {[%clk 0:00:43.3]} 40... f4 {[%clk 0:00:09.4]} 41. gxf4
{[%clk 0:00:41.2]} 41... h5 {[%clk 0:00:08.9]} 42. Kg2 {[%clk 0:00:40.8]} 42...
Rc3 {[%clk 0:00:08]} 43. a5 {[%clk 0:00:39.7]} 43... h4 {[%clk 0:00:08.3]} 44.
h3 {[%clk 0:00:39.9]} 44... Rc1 {[%clk 0:00:05.6]} 45. a6 {[%clk 0:00:39.2]}
45... Ra1 {[%clk 0:00:06.5]} 46. Rb6+ {[%clk 0:00:38.5]} 46... Kf5 {[%clk
0:00:06]} 47. b4 {[%clk 0:00:37.1]} 47... Kxf4 {[%clk 0:00:06.9]} 48. b5 {[%clk
0:00:36.3]} 48... Ra3 {[%clk 0:00:05.9]} 49. Rb7 {[%clk 0:00:35.4]} 49... Ra5
{[%clk 0:00:05.4]} 50. a7 {[%clk 0:00:34.8]} 50... Ke4 {[%clk 0:00:04.1]} 51.
Rg7 {[%clk 0:00:27.8]} 51... Kf4 {[%clk 0:00:02.5]} 52. b6 {[%clk 0:00:26.8]}
52... Ra1 {[%clk 0:00:01.5]} 53. Rg4+ {[%clk 0:00:26]} 53... Kf5 {[%clk
0:00:01.1]} 54. Rxh4 {[%clk 0:00:26]} 1-0

[Event "*** SCC Grand Prix: Titled Tuesday Blitz"]
[Site "Chess.com"]
[Date "2020.07.21"]
[Round "5"]
[White "dpopadic"]
[Black "knightmare7724"]
[Result "0-1"]
[WhiteElo "2381"]
[BlackElo "2603"]
[TimeControl "180+1"]
[EndTime "10:55:59 PDT"]
[Termination "knightmare7724 won on time"]

1. e4 {[%clk 0:03:00.9]} 1... e5 {[%clk 0:03:00.1]} 2. Nf3 {[%clk 0:03:00.2]}
2... Nc6 {[%clk 0:03:00.8]} 3. Bb5 {[%clk 0:02:59.6]} 3... a6 {[%clk 0:03:01.4]}
4. Ba4 {[%clk 0:02:59.4]} 4... Nf6 {[%clk 0:03:00.4]} 5. O-O {[%clk 0:02:59.2]}
5... Be7 {[%clk 0:03:01]} 6. Re1 {[%clk 0:02:59]} 6... b5 {[%clk 0:02:59.9]} 7.
Bb3 {[%clk 0:02:59.2]} 7... d6 {[%clk 0:03:00.8]} 8. c3 {[%clk 0:02:58.9]} 8...
O-O {[%clk 0:03:00.8]} 9. d3 {[%clk 0:02:58.6]} 9... Na5 {[%clk 0:02:56.2]} 10.
Bc2 {[%clk 0:02:58.3]} 10... c5 {[%clk 0:02:56.8]} 11. h3 {[%clk 0:02:57.8]}
11... Re8 {[%clk 0:02:56.7]} 12. Nbd2 {[%clk 0:02:57.8]} 12... Bf8 {[%clk
0:02:57.4]} 13. Nf1 {[%clk 0:02:57.8]} 13... Qc7 {[%clk 0:02:57.4]} 14. Ng3
{[%clk 0:02:57.4]} 14... g6 {[%clk 0:02:58]} 15. Be3 {[%clk 0:02:56.5]} 15... h6
{[%clk 0:02:57]} 16. Nh4 {[%clk 0:02:45.2]} 16... Kh7 {[%clk 0:02:55.9]} 17. Qf3
{[%clk 0:02:34.6]} 17... Bg7 {[%clk 0:02:53.8]} 18. Rad1 {[%clk 0:02:32.4]}
18... Be6 {[%clk 0:02:43.2]} 19. Bb1 {[%clk 0:02:31.5]} 19... Rac8 {[%clk
0:02:35.2]} 20. d4 {[%clk 0:02:26.9]} 20... cxd4 {[%clk 0:02:35.8]} 21. cxd4
{[%clk 0:02:26.3]} 21... Nc4 {[%clk 0:02:33.8]} 22. d5 {[%clk 0:02:22.7]} 22...
Nxe3 {[%clk 0:02:14.2]} 23. Qxe3 {[%clk 0:02:13.9]} 23... Bd7 {[%clk 0:02:11.5]}
24. Rc1 {[%clk 0:02:05.8]} 24... Qb7 {[%clk 0:02:10.3]} 25. Nf3 {[%clk
0:02:03.6]} 25... Rxc1 {[%clk 0:02:06.7]} 26. Rxc1 {[%clk 0:02:03.3]} 26... Rc8
{[%clk 0:02:06.7]} 27. Rc3 {[%clk 0:02:03.1]} 27... b4 {[%clk 0:01:56.6]} 28.
Rc1 {[%clk 0:01:59.3]} 28... Bb5 {[%clk 0:01:51.8]} 29. Qe1 {[%clk 0:01:56.2]}
29... a5 {[%clk 0:01:45.3]} 30. Nd2 {[%clk 0:01:45.9]} 30... Nd7 {[%clk
0:01:26.6]} 31. Ngf1 {[%clk 0:01:41.6]} 31... Nc5 {[%clk 0:01:24.5]} 32. Ne3
{[%clk 0:01:36.2]} 32... h5 {[%clk 0:01:23.4]} 33. Ndc4 {[%clk 0:01:28.6]} 33...
Qa6 {[%clk 0:01:21.3]} 34. b3 {[%clk 0:01:25.3]} 34... Bh6 {[%clk 0:01:20.8]}
35. Rd1 {[%clk 0:00:46.6]} 35... Kg7 {[%clk 0:01:05.4]} 36. Kh1 {[%clk
0:00:29.6]} 36... Bg5 {[%clk 0:01:02.7]} 37. g3 {[%clk 0:00:27.6]} 37... h4
{[%clk 0:01:00.3]} 38. g4 {[%clk 0:00:24.8]} 38... Rb8 {[%clk 0:00:46.8]} 39.
Kg2 {[%clk 0:00:24]} 39... Bd7 {[%clk 0:00:46.3]} 40. Qe2 {[%clk 0:00:19.9]}
40... a4 {[%clk 0:00:44.5]} 41. Qb2 {[%clk 0:00:17.8]} 41... Bf4 {[%clk
0:00:40.8]} 42. Kg1 {[%clk 0:00:14.8]} 42... axb3 {[%clk 0:00:40.7]} 43. axb3
{[%clk 0:00:14.3]} 43... Ra8 {[%clk 0:00:41.1]} 44. Ng2 {[%clk 0:00:14.3]} 44...
Bg5 {[%clk 0:00:40.6]} 45. f4 {[%clk 0:00:14.1]} 45... Bf6 {[%clk 0:00:39.1]}
46. g5 {[%clk 0:00:13.6]} 46... Be7 {[%clk 0:00:23.8]} 47. fxe5 {[%clk
0:00:13.3]} 47... Bxg5 {[%clk 0:00:16.9]} 48. exd6+ {[%clk 0:00:07]} 48... Kg8
{[%clk 0:00:17.4]} 49. e5 {[%clk 0:00:06.4]} 49... Qa1 {[%clk 0:00:15.9]} 50.
Qe2 {[%clk 0:00:02.9]} 50... Qc3 {[%clk 0:00:15]} 51. e6 {[%clk 0:00:02]} 51...
fxe6 {[%clk 0:00:15.2]} 52. dxe6 {[%clk 0:00:02.1]} 52... Bxe6 {[%clk
0:00:15.5]} 0-1

[Event "*** SCC Grand Prix: Titled Tuesday Blitz"]
[Site "Chess.com"]
[Date "2020.07.21"]
[Round "5"]
[White "Sam_ChessMood"]
[Black "Kildepiotr"]
[Result "1/2-1/2"]
[WhiteElo "2803"]
[BlackElo "2617"]
[TimeControl "180+1"]
[EndTime "10:56:01 PDT"]
[Termination "Game drawn by repetition"]

1. e4 {[%clk 0:03:00.9]} 1... g6 {[%clk 0:01:51]} 2. d4 {[%clk 0:02:58.8]} 2...
Bg7 {[%clk 0:01:51.1]} 3. Nf3 {[%clk 0:02:54.5]} 3... c6 {[%clk 0:01:50.9]} 4.
Nc3 {[%clk 0:02:53]} 4... d6 {[%clk 0:01:51.1]} 5. Be3 {[%clk 0:02:52.1]} 5...
Nf6 {[%clk 0:01:51.1]} 6. Qd2 {[%clk 0:02:51.3]} 6... O-O {[%clk 0:01:50.5]} 7.
O-O-O {[%clk 0:02:42.5]} 7... b5 {[%clk 0:01:49.6]} 8. Bd3 {[%clk 0:02:39.4]}
8... b4 {[%clk 0:01:42.7]} 9. Ne2 {[%clk 0:02:38.9]} 9... Qa5 {[%clk 0:01:42.4]}
10. Kb1 {[%clk 0:02:38.9]} 10... Ba6 {[%clk 0:01:42.1]} 11. h4 {[%clk
0:01:55.6]} 11... Bxd3 {[%clk 0:01:40.5]} 12. cxd3 {[%clk 0:01:54.3]} 12... h5
{[%clk 0:01:37.2]} 13. Ng5 {[%clk 0:01:47.5]} 13... Na6 {[%clk 0:01:29.8]} 14.
f3 {[%clk 0:01:44.1]} 14... c5 {[%clk 0:01:24.2]} 15. d5 {[%clk 0:01:33.3]}
15... Qb5 {[%clk 0:01:16.3]} 16. g4 {[%clk 0:01:29.6]} 16... Rfc8 {[%clk
0:00:52.3]} 17. Rc1 {[%clk 0:00:56.2]} 17... c4 {[%clk 0:00:45.7]} 18. Nd4
{[%clk 0:00:55.1]} 18... Qd7 {[%clk 0:00:44.8]} 19. Nc6 {[%clk 0:00:36.3]} 19...
c3 {[%clk 0:00:34.9]} 20. bxc3 {[%clk 0:00:34]} 20... bxc3 {[%clk 0:00:34.8]}
21. Rxc3 {[%clk 0:00:34]} 21... hxg4 {[%clk 0:00:30.6]} 22. f4 {[%clk
0:00:29.8]} 22... Nc7 {[%clk 0:00:21.5]} 23. Rhc1 {[%clk 0:00:11.2]} 23... Ncxd5
{[%clk 0:00:20.6]} 24. exd5 {[%clk 0:00:10.6]} 24... Nxd5 {[%clk 0:00:20.5]} 25.
Nxe7+ {[%clk 0:00:09.8]} 25... Nxe7 {[%clk 0:00:20.3]} 26. Rxc8+ {[%clk
0:00:10.1]} 26... Rxc8 {[%clk 0:00:20.2]} 27. Rxc8+ {[%clk 0:00:10.3]} 27...
Qxc8 {[%clk 0:00:20]} 28. Ne4 {[%clk 0:00:06.1]} 28... Nd5 {[%clk 0:00:16.9]}
29. Bf2 {[%clk 0:00:05]} 29... Qb7+ {[%clk 0:00:16.1]} 30. Kc1 {[%clk
0:00:05.1]} 30... Qc6+ {[%clk 0:00:12.6]} 31. Qc2 {[%clk 0:00:04.9]} 31... Qa6
{[%clk 0:00:10]} 32. Qc4 {[%clk 0:00:03.2]} 32... Qxc4+ {[%clk 0:00:09.2]} 33.
dxc4 {[%clk 0:00:03.1]} 33... Nxf4 {[%clk 0:00:10.1]} 34. Bxa7 {[%clk
0:00:03.1]} 34... Be5 {[%clk 0:00:08.3]} 35. Kd2 {[%clk 0:00:01.9]} 35... Ne6
{[%clk 0:00:07.5]} 36. Be3 {[%clk 0:00:02.4]} 36... g3 {[%clk 0:00:07.5]} 37.
Bg1 {[%clk 0:00:01.9]} 37... f5 {[%clk 0:00:05.6]} 38. Ng5 {[%clk 0:00:02.3]}
38... Nxg5 {[%clk 0:00:04.4]} 39. hxg5 {[%clk 0:00:03.2]} 39... f4 {[%clk
0:00:03.7]} 40. Ke2 {[%clk 0:00:03.6]} 40... Kf7 {[%clk 0:00:03.7]} 41. Kf3
{[%clk 0:00:04.1]} 41... Ke6 {[%clk 0:00:03.8]} 42. a4 {[%clk 0:00:04.7]} 42...
Kd7 {[%clk 0:00:04.1]} 43. a5 {[%clk 0:00:05.2]} 43... Kc8 {[%clk 0:00:04.5]}
44. a6 {[%clk 0:00:05.4]} 44... Kb8 {[%clk 0:00:04.9]} 45. Bb6 {[%clk
0:00:05.6]} 45... Ka8 {[%clk 0:00:04.3]} 46. Bg1 {[%clk 0:00:05.6]} 46... Kb8
{[%clk 0:00:04.5]} 47. Bb6 {[%clk 0:00:05.7]} 47... Ka8 {[%clk 0:00:04.8]} 48.
Bg1 {[%clk 0:00:04.7]} 48... Kb8 {[%clk 0:00:05.1]} 1/2-1/2

[Event "*** SCC Grand Prix: Titled Tuesday Blitz"]
[Site "Chess.com"]
[Date "2020.07.21"]
[Round "5"]
[White "Chessmasterzt"]
[Black "platy3"]
[Result "0-1"]
[WhiteElo "2587"]
[BlackElo "2763"]
[TimeControl "180+1"]
[EndTime "10:56:01 PDT"]
[Termination "platy3 won on time"]

1. d4 {[%clk 0:03:00.9]} 1... Nf6 {[%clk 0:02:54.2]} 2. Nf3 {[%clk 0:03:01.1]}
2... d5 {[%clk 0:02:52.2]} 3. c4 {[%clk 0:03:01.3]} 3... e6 {[%clk 0:02:52.7]}
4. g3 {[%clk 0:02:56.4]} 4... Be7 {[%clk 0:02:52.1]} 5. Bg2 {[%clk 0:02:56.4]}
5... O-O {[%clk 0:02:52.6]} 6. O-O {[%clk 0:02:55.8]} 6... dxc4 {[%clk
0:02:53.2]} 7. Qc2 {[%clk 0:02:55.4]} 7... a6 {[%clk 0:02:53.8]} 8. a4 {[%clk
0:02:51.5]} 8... Bd7 {[%clk 0:02:54.2]} 9. Qxc4 {[%clk 0:02:51.6]} 9... Bc6
{[%clk 0:02:54.7]} 10. Bf4 {[%clk 0:02:46.4]} 10... Bd6 {[%clk 0:02:54.4]} 11.
Nbd2 {[%clk 0:02:26.7]} 11... a5 {[%clk 0:02:46.6]} 12. Bg5 {[%clk 0:02:08]}
12... h6 {[%clk 0:02:41.5]} 13. Bxf6 {[%clk 0:02:05.6]} 13... Qxf6 {[%clk
0:02:42.4]} 14. e4 {[%clk 0:02:04]} 14... Qd8 {[%clk 0:02:41.8]} 15. Rfd1 {[%clk
0:01:39.9]} 15... Na6 {[%clk 0:02:16.3]} 16. Qe2 {[%clk 0:01:05.7]} 16... Nb4
{[%clk 0:01:58.9]} 17. Nc4 {[%clk 0:01:06.1]} 17... Be7 {[%clk 0:01:55.5]} 18.
b3 {[%clk 0:01:05]} 18... b6 {[%clk 0:01:50.1]} 19. Rac1 {[%clk 0:01:01.8]}
19... Bb7 {[%clk 0:01:49.2]} 20. Nfe5 {[%clk 0:00:57.7]} 20... Bd6 {[%clk
0:01:35.4]} 21. Nd3 {[%clk 0:00:54.7]} 21... Be7 {[%clk 0:01:33.6]} 22. Nde5
{[%clk 0:00:54]} 22... Bg5 {[%clk 0:01:19.4]} 23. Rb1 {[%clk 0:00:43.1]} 23...
Bf6 {[%clk 0:01:14.1]} 24. Rbc1 {[%clk 0:00:39.6]} 24... g6 {[%clk 0:01:08.8]}
25. h4 {[%clk 0:00:36]} 25... Bg7 {[%clk 0:01:05.5]} 26. f4 {[%clk 0:00:26.2]}
26... Qe7 {[%clk 0:00:58]} 27. Na3 {[%clk 0:00:19.7]} 27... Rad8 {[%clk
0:00:56.3]} 28. Nb5 {[%clk 0:00:20]} 28... c6 {[%clk 0:00:50.4]} 29. Na3 {[%clk
0:00:18]} 29... Kh7 {[%clk 0:00:28.2]} 30. Nac4 {[%clk 0:00:18.2]} 30... Ba6
{[%clk 0:00:28.7]} 31. Qf2 {[%clk 0:00:18.2]} 31... c5 {[%clk 0:00:22.7]} 32.
dxc5 {[%clk 0:00:16.5]} 32... bxc5 {[%clk 0:00:23]} 33. Na3 {[%clk 0:00:12.8]}
33... Bxe5 {[%clk 0:00:22.4]} 34. fxe5 {[%clk 0:00:12.4]} 34... Nd3 {[%clk
0:00:22.4]} 35. Rxd3 {[%clk 0:00:11.9]} 35... Rxd3 {[%clk 0:00:21.1]} 36. Rxc5
{[%clk 0:00:11.8]} 36... Rxb3 {[%clk 0:00:18.8]} 37. Nb5 {[%clk 0:00:11.3]}
37... Bxb5 {[%clk 0:00:14.1]} 38. axb5 {[%clk 0:00:12.2]} 38... a4 {[%clk
0:00:13.3]} 39. Bf1 {[%clk 0:00:11.4]} 39... a3 {[%clk 0:00:13.3]} 40. Rc2
{[%clk 0:00:10]} 40... Ra8 {[%clk 0:00:06.8]} 41. b6 {[%clk 0:00:10.4]} 41...
Kg7 {[%clk 0:00:03.9]} 42. Rc7 {[%clk 0:00:08.8]} 42... Rb2 {[%clk 0:00:04.1]}
43. Qf4 {[%clk 0:00:03.6]} 43... Qe8 {[%clk 0:00:03.9]} 44. Qf6+ {[%clk
0:00:03.7]} 44... Kg8 {[%clk 0:00:03.8]} 45. b7 {[%clk 0:00:03.2]} 45... Rxb7
{[%clk 0:00:03.2]} 46. Rxb7 {[%clk 0:00:02.6]} 46... a2 {[%clk 0:00:03.6]} 0-1